fUST/lending_fUST_20240221
["ID","MTS","AMOUNT","RATE_DAILY","PERIOD"]
[314674118,1708519842021,-108.9773592,0.00019715,2]
[314674302,1708519843555,-806.50278922,0.00019715,2]
[314674967,1708519850327,-908.21571175,0.00019706,3]
[314674970,1708519850340,-748.29428825,0.00019706,3]
[314674972,1708519850350,-100.6165477,0.00019714,2]
[314675086,1708520046721,1086.6776362,0.00018805,2]
[314675131,1708520196882,1353.13344565,0.000189,2]
[314675133,1708520798688,902.08896377,0.000189,2]
[314675177,1708521031763,-204.8752488,0.00019215,2]
[314675179,1708521031773,-620.01264333,0.00019216,2]
[314675181,1708521031782,-155.08064193,0.00019607,2]
[314675183,1708521031791,-239.9797751,0.00019612,2]
[314675185,1708521031801,-1904.15,0.00019702,3]
[314675187,1708521031810,-1586.79,0.00019702,3]
[314675189,1708521031820,-2.16361883,0.00019703,3]
[314675192,1708521031831,-331.12556994,0.00019703,3]
[314675196,1708521031842,-26.65081123,0.00019703,3]
[314675198,1708521031852,-239.97977509,0.00019709,2]
[314675201,1708521031861,-329.95156051,0.00019711,2]
[314675238,1708521037773,-1322.32,0.00019702,3]
[314675239,1708521037785,-1819.97583253,0.00019711,2]
[314675272,1708521045714,-170.729374,0.0001971,2]
[314675273,1708521045725,-641.31188496,0.00019711,2]
[314675274,1708521400142,601.39264251,0.000189,2]
[314675279,1708522001736,400.92842834,0.000189,2]
[314675280,1708522104170,-155.07909034,0.0001961,2]
[314675281,1708522107895,169.18906018,0.0001961,2]
[314675282,1708522132087,179.98483134,0.0001961,2]
[314675285,1708522171595,155.07753877,0.000197,2]
[314675356,1708522234987,-1065.66344909,0.00019709,2]
[314675357,1708522235000,-467.09929999,0.00019709,2]
[314675385,1708522241098,-637.69,0.00019701,3]
[314675386,1708522241108,-910.24920703,0.00019709,2]
[314675453,1708522258070,1651.84,0.000197,3]
[314675454,1708522260060,155.07909034,0.000197,2]
[314675455,1708522269356,1376.53,0.000197,3]
[314675456,1708522281292,1147.11,0.000197,3]
[314675457,1708522292530,1286.29,0.000197,3]
[314675458,1708522302254,-160.0,0.00024912,33]
[314675459,1708522302292,-160.0,0.00024988,34]
[314675460,1708522302323,-160.0,0.00025065,35]
[314675461,1708522302349,-160.0,0.00025141,36]
[314675462,1708522302406,-150.5,0.0002765,35]
[314675463,1708522302430,-150.5,0.0002765,35]
[314675464,1708522302454,-150.5,0.0002766,35]
[314675465,1708522302479,-150.5,0.0002766,35]
[314675466,1708522302503,-150.5,0.0002766,35]
[314675467,1708522302525,-150.5,0.0002766,35]
[314675468,1708522302549,-150.5,0.0002767,35]
[314675469,1708522302573,-150.5,0.0002767,35]
[314675470,1708522302597,-150.5,0.0002767,35]
[314675471,1708522302623,-150.5,0.0002767,35]
[314675472,1708522302647,-1713.0,0.0002767,35]
[314675473,1708522302671,-231.0,0.0002767,35]
[314675474,1708522302694,-1713.0,0.0002767,35]
[314675475,1708522302717,-231.0,0.0002767,35]
[314675476,1708522302741,-150.5,0.0002767,35]
[314675477,1708522302764,-1713.0,0.0002768,35]
[314675478,1708522302788,-231.0,0.0002768,35]
[314675479,1708522302812,-1713.0,0.0002768,35]
[314675480,1708522302834,-231.0,0.0002768,35]
[314675481,1708522302857,-1713.0,0.0002768,35]
[314675482,1708522302882,-231.0,0.0002768,35]
[314675483,1708522302905,-1715.3,0.0002768,35]
[314675484,1708522302929,-231.29,0.0002768,35]
[314675485,1708522302952,-278.95,0.0002769,35]
[314675486,1708522302978,-1713.0,0.0002769,35]
[314675487,1708522303002,-231.0,0.0002769,35]
[314675488,1708522303025,-1713.0,0.0002769,35]
[314675489,1708522303049,-231.0,0.0002769,35]
[314675490,1708522303076,-1713.0,0.0002769,35]
[314675491,1708522303099,-231.0,0.0002769,35]
[314675492,1708522303124,-1713.0,0.0002769,35]
[314675493,1708522303153,-231.0,0.0002769,35]
[314675494,1708522303177,-154.36,0.0002769,35]
[314675495,1708522303222,-161.435762,0.00030959,38]
[314675496,1708522303246,-161.435762,0.00030959,46]
[314675497,1708522303269,-161.435762,0.00030959,53]
[314675498,1708522303292,-161.435762,0.00030959,61]
[314675499,1708522303315,-161.435762,0.00030959,68]
[314675500,1708522303337,-161.435762,0.00030959,75]
[314675501,1708522303360,-161.435762,0.00030959,83]
[314675502,1708522303386,-161.435762,0.00030959,90]
[314675503,1708522303409,-161.435762,0.00030959,97]
[314675504,1708522303433,-161.435762,0.00030959,105]
[314675505,1708522303456,-161.435762,0.00030959,112]
[314675506,1708522303478,-161.435762,0.00030959,120]
[314675507,1708522303503,-200.0,0.00031236,120]
[314675508,1708522303542,-267.07239586,0.00033,120]
[314675509,1708522303566,-251.8757257,0.00034,120]
[314675510,1708522303591,-1000.0,0.00034,34]
[314675511,1708522303618,-5042.08549185,0.00034898,120]
[314675512,1708522303644,-1727.85124476,0.0003555,120]
[314675513,1708522303669,-314.6226104,0.00036,120]
[314675514,1708522303693,-1047.7694249,0.00037,120]
[314675515,1708522303717,-9939.65345709,0.00038,90]
[314675516,1708522303764,1071.91,0.000197,3]
[314675517,1708522314407,893.26,0.000197,3]
[314675518,1708522326523,744.38,0.000197,3]
[314675519,1708522334903,169.18906018,0.0001961,2]
[314675520,1708522336857,620.32,0.000197,3]
[314675521,1708522338569,155.07288426,0.000197,2]
[314675522,1708522349398,516.93,0.000197,3]
[314675523,1708522350819,200.0,0.00029884,120]
[314675524,1708522361288,430.78,0.000197,3]
[314675525,1708522373668,358.98,0.000197,3]
[314675526,1708522385943,299.15,0.000197,3]
[314675527,1708522396498,249.29,0.000197,3]
[314675528,1708522398873,158.974517,0.00018718,2]
[314675529,1708522407918,207.75,0.000197,3]
[314675530,1708522419215,173.12,0.000197,3]
[314675531,1708522425057,155.07443573,0.000197,2]
[314675532,1708522431003,865.63,0.000197,3]
[314675533,1708522533917,179.98483131,0.0001961,2]
[314675534,1708522548878,169.18906018,0.00019609,2]
[314675535,1708522580308,194.9,0.000197,3]
[314675536,1708522873829,158.974517,0.00018814,2]
[314675537,1708522933521,179.98483131,0.00019609,2]
[314675538,1708523163259,155.09386863,0.00019609,2]
[314675541,1708523262113,267.36,0.00019699,3]
[314675542,1708523331585,179.98483131,0.00019609,2]
[314675548,1708523409325,620.00063217,0.00019167,2]
[314675593,1708523432307,-300.0,0.00019707,2]
[314675595,1708523432316,-9.61304631,0.00019707,2]
[314675597,1708523432331,-445.66370424,0.00019707,2]
[314675633,1708523438098,-122.47324945,0.00019707,2]
[314675635,1708523438108,-162.02643736,0.00019708,2]
[314675637,1708523438119,-230.41626043,0.00019708,2]
[314675639,1708523438129,-492.20118243,0.00019708,2]
[314675699,1708523438946,-7.79881757,0.00019708,2]
[314675700,1708523438956,-259.19778228,0.00019708,2]
[314675701,1708523438966,-500.0,0.00019708,2]
[314675702,1708523438977,-500.0,0.00019708,2]
[314675703,1708523438986,-500.0,0.00019708,2]
[314675704,1708523438997,-500.0,0.00019708,2]
[314675705,1708523439007,-532.72,0.00019708,2]
[314675706,1708523439017,-500.0,0.00019708,2]
[314675707,1708523439027,-500.0,0.00019708,2]
[314675708,1708523439036,-1260.36246659,0.00019708,2]
[314675709,1708523439050,-29.00753341,0.00019708,2]
[314675710,1708523439060,-500.0,0.00019708,2]
[314675711,1708523439070,-500.0,0.00019708,2]
[314675712,1708523439080,-500.0,0.00019708,2]
[314675713,1708523439090,-500.0,0.00019708,2]
[314675714,1708523439100,-500.0,0.00019708,2]
[314675715,1708523439110,-500.0,0.00019708,2]
[314675716,1708523439119,-838.52201264,0.00019708,2]
[314675753,1708523441386,-485.16798736,0.00019708,2]
[314675754,1708523441397,-500.0,0.00019708,2]
[314675755,1708523441408,-500.0,0.00019708,2]
[314675756,1708523441418,-525.92685778,0.00019708,2]
[314675772,1708523444728,-14.02314222,0.00019708,2]
[314675773,1708523444738,-500.0,0.00019708,2]
[314675774,1708523444747,-1795.06,0.00019708,2]
[314675775,1708523444757,-500.0,0.00019708,2]
[314675777,1708523444765,-311.29389314,0.00019708,2]
[314675779,1708523444775,-147.81167146,0.00019708,2]
[314675799,1708523472509,817.08,0.00019699,3]
[314675802,1708523484374,680.9,0.00019699,3]
[314675805,1708523496053,567.42,0.00019699,3]
[314675807,1708523506663,472.85,0.00019699,3]
[314675808,1708523518714,394.04,0.00019699,3]
[314675811,1708523531537,328.37,0.00019699,3]
[314675812,1708523540576,1000.0,0.00019611,2]
[314675813,1708523540760,1000.0,0.00019608,2]
[314675814,1708523542636,273.64,0.00019698,3]
[314675815,1708523554436,228.03,0.00019698,3]
[314675817,1708523566142,190.03,0.00019698,3]
[314675819,1708523577993,158.35,0.00019698,3]
[314675822,1708523589658,791.8,0.00019698,3]
[314675823,1708523615106,300.0,0.00019561,2]
[314675824,1708523628369,1679.4847297,0.00018846,2]
[314675827,1708523720939,1000.0,0.00019666,2]
[314675828,1708523720999,1000.0,0.00019578,2]
[314675829,1708523721034,1000.0,0.00019526,2]
[314675830,1708523721064,1000.0,0.0001966,2]
[314675831,1708523721096,1000.0,0.00019545,2]
[314675832,1708523721153,1000.0,0.00019662,2]
[314675833,1708523721217,1000.0,0.0001966,2]
[314675835,1708523734902,153.35119473,0.00019658,2]
[314675836,1708523774409,1000.0,0.00019708,7]
[314675837,1708523774664,1000.0,0.00019982,7]
[314675838,1708523775287,159.59000003,0.00020256,7]
[314675839,1708523805683,267.28561889,0.000189,2]
[314675842,1708524241988,155.07753877,0.00017735,3]
[314675843,1708524257095,155.07753877,0.00017735,3]
[314675844,1708524275103,155.07753877,0.00017735,3]
[314675845,1708524291101,155.07753877,0.00017735,3]
[314675846,1708524315604,155.07753877,0.00017735,3]
[314675847,1708524331631,155.07753877,0.00017735,3]
[314675848,1708524351613,155.07753877,0.00017735,3]
[314675849,1708524368270,155.07753877,0.00017735,3]
[314675850,1708524386117,155.07753877,0.00017735,3]
[314675851,1708524405935,6000.0,0.0003,120]
[314675852,1708524408124,155.07753877,0.00017735,3]
[314675853,1708524424631,155.07753877,0.00017735,3]
[314675854,1708524438632,155.07753877,0.00017735,3]
[314675855,1708524456642,155.07753877,0.00017735,3]
[314675856,1708524478479,2300.0,0.0003,120]
[314675907,1708524638269,-1590.19065373,0.00019706,2]
[314675908,1708524638281,-500.0,0.00019706,2]
[314675909,1708524638295,-407.00934627,0.00019706,2]
[314675910,1708524638308,-92.99065373,0.00019706,2]
[314675911,1708524638319,-500.0,0.00019706,2]
[314675912,1708524638330,-500.0,0.00019706,2]
[314675913,1708524638342,-500.0,0.00019706,2]
[314675914,1708524638354,-1367.42,0.00019706,2]
[314675915,1708524638366,-7043.49947975,0.00019706,2]
[314675916,1708524638380,-906.19788675,0.00019706,2]
[314675919,1708524641427,-728.8219112,0.00019706,2]
[314675920,1708524641497,-3002.3875149,0.00019706,2]
[314675921,1708524641512,-620.4632074,0.00019706,2]
[314675922,1708524641522,-541.9,0.00019706,2]
[314675923,1708524641532,-954.13157297,0.00019706,2]
[314676006,1708524643358,-514.5,0.00019706,2]
[314676008,1708524643372,-478.15504077,0.00019706,2]
[314676145,1708524646383,-2608.9,0.00019706,2]
[314676148,1708524646397,-7565.97338626,0.00019706,2]
[314676150,1708524646408,-500.0,0.00019706,2]
[314676152,1708524646418,-500.0,0.00019706,2]
[314676154,1708524646428,-500.0,0.00019706,2]
[314676156,1708524646439,-500.0,0.00019706,2]
[314676158,1708524646450,-267.43661371,0.00019706,2]
[314676240,1708524715615,-160.0,0.00024682,30]
[314676241,1708524715637,-160.0,0.00024759,31]
[314676242,1708524715659,-160.0,0.00024835,32]
[314676243,1708524715687,-160.0,0.00024912,33]
[314676244,1708524715713,-160.0,0.00024988,34]
[314676245,1708524715739,-160.0,0.00025065,35]
[314676246,1708524715762,-160.0,0.00025141,36]
[314676247,1708524715797,-157.3821,0.00026883,30]
[314676248,1708524715828,-150.5,0.0002767,35]
[314676249,1708524715852,-1713.0,0.0002767,35]
[314676250,1708524715873,-231.0,0.0002767,35]
[314676251,1708524715896,-150.5,0.0002767,35]
[314676252,1708524715918,-1713.0,0.0002767,35]
[314676253,1708524715940,-231.0,0.0002767,35]
[314676254,1708524715962,-150.5,0.0002767,35]
[314676255,1708524715985,-150.5,0.0002768,35]
[314676256,1708524716008,-1713.0,0.0002768,35]
[314676257,1708524716030,-231.0,0.0002768,35]
[314676258,1708524716053,-150.5,0.0002768,35]
[314676259,1708524716075,-1713.0,0.0002768,35]
[314676260,1708524716098,-231.0,0.0002768,35]
[314676261,1708524716121,-150.5,0.0002768,35]
[314676262,1708524716144,-1713.0,0.0002768,35]
[314676263,1708524716166,-231.0,0.0002768,35]
[314676264,1708524716189,-1715.3,0.0002768,35]
[314676265,1708524716212,-231.29,0.0002768,35]
[314676266,1708524716234,-150.5,0.0002768,35]
[314676267,1708524716256,-150.5,0.0002769,35]
[314676268,1708524716278,-1713.0,0.0002769,35]
[314676269,1708524716300,-231.0,0.0002769,35]
[314676270,1708524716322,-150.5,0.0002769,35]
[314676271,1708524716351,-1713.0,0.0002769,35]
[314676272,1708524716373,-231.0,0.0002769,35]
[314676273,1708524716395,-150.5,0.0002769,35]
[314676274,1708524716418,-1713.0,0.0002769,35]
[314676275,1708524716439,-278.95,0.0002769,35]
[314676276,1708524716461,-231.0,0.0002769,35]
[314676277,1708524716483,-1713.0,0.0002769,35]
[314676278,1708524716506,-231.0,0.0002769,35]
[314676279,1708524716528,-150.5,0.0002769,35]
[314676280,1708524716549,-154.36,0.0002769,35]
[314676281,1708524716579,-2040.0,0.00029,30]
[314676282,1708524759820,-1000.0,0.00023,23]
[314676283,1708524759849,-160.0,0.00023152,10]
[314676284,1708524759873,-160.0,0.00023228,11]
[314676285,1708524759899,-160.0,0.00023305,12]
[314676286,1708524759922,-160.0,0.00023381,13]
[314676287,1708524759945,-160.0,0.00023458,14]
[314676288,1708524759968,-160.0,0.00023534,15]
[314676289,1708524759994,-160.0,0.00023611,16]
[314676290,1708524760017,-160.0,0.00023687,17]
[314676291,1708524760039,-160.0,0.00023764,18]
[314676292,1708524760065,-160.0,0.00023841,19]
[314676293,1708524760088,-160.0,0.00023917,20]
[314676294,1708524760112,-160.0,0.00023994,21]
[314676295,1708524760135,-1000.0,0.00024,24]
[314676296,1708524760157,-160.0,0.0002407,22]
[314676297,1708524760183,-160.0,0.00024147,23]
[314676298,1708524760207,-160.0,0.00024223,24]
[314676299,1708524760230,-160.0,0.000243,25]
[314676300,1708524760257,-160.0,0.00024376,26]
[314676301,1708524760280,-160.0,0.00024453,27]
[314676302,1708524760304,-160.0,0.00024529,28]
[314676303,1708524760327,-160.0,0.00024606,29]
[314676304,1708524760544,-1000.0,0.00025,25]
[314676305,1708524760567,-5102.27540663,0.00025,10]
[314676306,1708524760601,-1000.0,0.00026,26]
[314676307,1708524760630,-1000.0,0.00027,27]
[314676308,1708524760656,-1032.6,0.00027397,15]
[314676309,1708524760678,-1032.6,0.00027397,15]
[314676310,1708524760700,-1032.6,0.00027397,15]
[314676311,1708524760722,-1032.6,0.00027397,15]
[314676312,1708524760744,-1032.6,0.00027397,15]
[314676313,1708524760768,-1032.6,0.00027397,15]
[314676314,1708524760791,-1032.6,0.00027397,15]
[314676315,1708524760813,-1032.6,0.00027397,15]
[314676316,1708524760836,-1032.6,0.00027397,15]
[314676317,1708524760859,-1032.6,0.00027397,15]
[314676318,1708524760882,-1032.6,0.00027397,15]
[314676319,1708524760904,-1032.6,0.00027397,15]
[314676320,1708524760928,-1032.6,0.00027397,15]
[314676321,1708524760951,-1032.6,0.00027397,15]
[314676322,1708524760972,-1032.6,0.00027397,15]
[314676323,1708524760994,-1032.6,0.00027397,15]
[314676324,1708524761017,-1032.6,0.00027397,15]
[314676325,1708524761040,-1032.6,0.00027397,15]
[314676326,1708524761062,-1032.6,0.00027397,15]
[314676327,1708524761084,-1032.6,0.00027397,15]
[314676328,1708524761106,-1032.6,0.00027397,15]
[314676329,1708524761151,-1032.6,0.00027397,15]
[314676330,1708524761174,-1032.6,0.00027397,15]
[314676331,1708524761197,-1032.71081102,0.00027397,15]
[314676332,1708524761219,-500.0,0.00027397,14]
[314676333,1708524761242,-570.16760786,0.00027397,14]
[314676334,1708524761268,-160.0,0.00027397,10]
[314676335,1708524761306,-160.0,0.00027397,10]
[314676336,1708524761329,-160.32115962,0.00027397,10]
[314676337,1708524761352,-160.0,0.00027397,10]
[314676338,1708524761376,-248.16470403,0.00027397,10]
[314676339,1708524761400,-160.0,0.00027397,10]
[314676340,1708524761423,-162.87185724,0.00027397,10]
[314676341,1708524761448,-1000.0,0.00028,28]
[314676342,1708524761472,-4636.45609153,0.00028,15]
[314676343,1708524761494,-753997.23236207,0.000285,20]
[314676344,1708525250643,474.36,0.00019697,3]
[314676345,1708525255947,695.18,0.00019696,3]
[314676346,1708525266340,579.32,0.00019696,3]
[314676347,1708525276923,482.76,0.00019696,3]
[314676348,1708525278432,171.824104,0.00018842,2]
[314676349,1708525288437,402.3,0.00019696,3]
[314676350,1708525299836,335.25,0.00019696,3]
[314676351,1708525310224,279.38,0.00019696,3]
[314676352,1708525322043,232.82,0.00019696,3]
[314676353,1708525333720,194.01,0.00019696,3]
[314676354,1708525345493,161.68,0.00019696,3]
[314676355,1708525356893,808.41,0.00019696,3]
[314676359,1708525430519,-200000.0,0.00028522,30]
[314676360,1708525441997,-200000.0,0.00028522,30]
[314676361,1708525447813,-200000.0,0.00028522,30]
[314676362,1708525617463,169.56425608,0.00019606,2]
[314676363,1708525753716,171.824104,0.00018718,2]
[314676408,1708525832510,-293.05100517,0.00019704,2]
[314676410,1708525832519,-500.0,0.00019705,2]
[314676412,1708525832529,-500.0,0.00019705,2]
[314676414,1708525832538,-500.0,0.00019705,2]
[314676416,1708525832548,-246.94899483,0.00019705,2]
[314676419,1708525832570,-253.05100517,0.00019705,2]
[314676421,1708525832579,-453.58102933,0.00019705,2]
[314676423,1708525832588,-500.0,0.00019705,2]
[314676425,1708525832597,-500.0,0.00019705,2]
[314676426,1708525832607,-92.05184756,0.00019705,2]
[314676473,1708525840387,-1143.59815244,0.00019705,2]
[314676475,1708525840396,-1001.0,0.00019705,2]
[314676477,1708525840405,-570.72,0.00019705,2]
[314676478,1708525840414,-500.0,0.00019705,2]
[314676480,1708525840424,-464.38843203,0.00019705,2]
[314676484,1708525840451,-35.61156797,0.00019705,2]
[314676486,1708525840460,-1801.87,0.00019705,2]
[314676488,1708525840469,-5288.49977247,0.00019705,2]
[314676502,1708525841692,-2991.76191454,0.00019705,2]
[314676503,1708525841705,-549.09724755,0.00019705,2]
[314676504,1708525841760,-3082.74106544,0.00019705,2]
[314676505,1708525841769,-500.0,0.00019705,2]
[314676506,1708525841779,-1329.48,0.00019705,2]
[314676507,1708525841788,-500.0,0.00019705,2]
[314676508,1708525841811,-4735.25860656,0.00019705,2]
[314676565,1708525843701,-2890.0,0.00019705,2]
[314676690,1708525848080,-4163.55139344,0.00019705,2]
[314676691,1708525848094,-500.0,0.00019705,2]
[314676692,1708525848105,-546.3631228,0.00019705,2]
[314676693,1708525848115,-635.15,0.00019705,2]
[314676694,1708525848125,-833.88,0.00019705,2]
[314676695,1708525848135,-500.0,0.00019705,2]
[314676696,1708525848144,-500.0,0.00019705,2]
[314676697,1708525848153,-170.91579356,0.00019705,2]
[314676698,1708525848164,-500.0,0.00019705,2]
[314676699,1708525848174,-736.07,0.00019705,2]
[314676700,1708525848185,-500.0,0.00019705,2]
[314676701,1708525848195,-500.0,0.00019705,2]
[314676702,1708525848205,-500.0,0.00019705,2]
[314676703,1708525848214,-1231.82,0.00019705,2]
[314676704,1708525848224,-500.47459778,0.00019705,2]
[314676705,1708525848233,-542.54,0.00019705,2]
[314676706,1708525848243,-500.0,0.00019705,2]
[314676707,1708525848252,-500.0,0.00019705,2]
[314676708,1708525848263,-500.0,0.00019705,2]
[314676709,1708525848272,-510.52,0.00019705,2]
[314676710,1708525848281,-500.0,0.00019706,2]
[314676711,1708525848291,-500.0,0.00019706,2]
[314676712,1708525848301,-500.0,0.00019706,2]
[314676713,1708525848310,-500.0,0.00019706,2]
[314676714,1708525848324,-500.0,0.00019706,2]
[314676715,1708525848333,-500.0,0.00019706,2]
[314676716,1708525848342,-313.40176277,0.00019706,2]
[314676717,1708525848352,-380.59583045,0.00019706,2]
[314676718,1708525848361,-488.39234827,0.00019706,2]
[314676719,1708525848371,-936.75,0.00019706,2]
[314676720,1708525848381,-500.0,0.00019706,2]
[314676721,1708525848391,-500.0,0.00019706,2]
[314676722,1708525848401,-500.0,0.00019706,2]
[314676723,1708525848411,-242.34779744,0.00019706,2]
[314676724,1708525848421,-500.0,0.00019706,2]
[314676725,1708525848431,-500.0,0.00019706,2]
[314676726,1708525848440,-500.0,0.00019706,2]
[314676727,1708525848450,-500.0,0.00019706,2]
[314676728,1708525848460,-500.0,0.00019706,2]
[314676729,1708525848470,-500.0,0.00019706,2]
[314676730,1708525848482,-836.85,0.00019706,2]
[314676731,1708525848492,-500.0,0.00019706,2]
[314676732,1708525848501,-500.0,0.00019706,2]
[314676733,1708525848512,-500.0,0.00019706,2]
[314676734,1708525848522,-500.0,0.00019706,2]
[314676735,1708525848532,-500.0,0.00019706,2]
[314676736,1708525848542,-500.0,0.00019706,2]
[314676737,1708525848552,-500.0,0.00019706,2]
[314676738,1708525848562,-500.0,0.00019706,2]
[314676739,1708525848576,-500.0,0.00019706,2]
[314676740,1708525848586,-2908.47,0.00019706,2]
[314676741,1708525848597,-500.0,0.00019706,2]
[314676742,1708525848606,-151.0,0.00019706,2]
[314676743,1708525848617,-500.0,0.00019706,2]
[314676744,1708525848626,-405.49221772,0.00019706,2]
[314676745,1708525848636,-500.0,0.00019706,2]
[314676746,1708525848646,-500.0,0.00019706,2]
[314676747,1708525848655,-1000.0,0.00019706,2]
[314676748,1708525848665,-1310.44,0.00019706,2]
[314676749,1708525848675,-844.45,0.00019706,2]
[314676750,1708525848685,-500.0,0.00019706,2]
[314676751,1708525848695,-235.96892945,0.00019706,2]
[314676752,1708525848704,-638.23,0.00019706,2]
[314676753,1708525848714,-500.0,0.00019706,2]
[314676754,1708525848724,-500.0,0.00019706,2]
[314676755,1708525848733,-672.07,0.00019706,2]
[314676756,1708525848743,-500.0,0.00019706,2]
[314676757,1708525848752,-501.37539635,0.00019706,2]
[314676758,1708525848761,-500.0,0.00019706,2]
[314676759,1708525848771,-500.0,0.00019706,2]
[314676760,1708525848780,-500.0,0.00019706,2]
[314676761,1708525848789,-500.0,0.00019706,2]
[314676762,1708525848798,-500.0,0.00019706,2]
[314676763,1708525848808,-500.0,0.00019706,2]
[314676764,1708525848822,-582.9,0.00019706,2]
[314676765,1708525848831,-582.9,0.00019706,2]
[314676766,1708525848841,-500.0,0.00019706,2]
[314676767,1708525848850,-540.79372869,0.00019706,2]
[314676768,1708525848859,-500.0,0.00019706,2]
[314676769,1708525848868,-2056.66,0.00019706,2]
[314676770,1708525848878,-500.0,0.00019706,2]
[314676771,1708525848887,-3303.3,0.00019706,2]
[314676772,1708525848897,-1594.34,0.00019706,2]
[314676773,1708525848906,-500.0,0.00019706,2]
[314676774,1708525848915,-500.0,0.00019706,2]
[314676775,1708525848925,-717.59,0.00019706,2]
[314676776,1708525848934,-3739.15,0.00019706,2]
[314676777,1708525848944,-240.35684034,0.00019706,2]
[314676778,1708525848953,-500.0,0.00019706,2]
[314676779,1708525848962,-500.0,0.00019706,2]
[314676780,1708525848971,-952.28,0.00019706,2]
[314676781,1708525848981,-985.6,0.00019706,2]
[314676782,1708525848990,-500.0,0.00019706,2]
[314676783,1708525848999,-500.0,0.00019706,2]
[314676784,1708525849009,-500.0,0.00019706,2]
[314676785,1708525849018,-500.0,0.00019706,2]
[314676786,1708525849027,-9123.63,0.00019706,2]
[314676787,1708525849036,-345.4447297,0.00019706,2]
[314676788,1708525849045,-500.0,0.00019706,2]
[314676789,1708525849054,-5070.54,0.00019706,2]
[314676790,1708525849071,-500.0,0.00019706,2]
[314676791,1708525849080,-500.0,0.00019706,2]
[314676792,1708525849091,-5856.17,0.00019706,2]
[314676793,1708525849100,-500.0,0.00019706,2]
[314676794,1708525849109,-500.0,0.00019706,2]
[314676795,1708525849119,-3476.84,0.00019706,2]
[314676796,1708525849128,-612.69208066,0.00019706,2]
[314676797,1708525849138,-500.0,0.00019706,2]
[314676798,1708525849148,-1000.0,0.00019706,2]
[314676799,1708525849157,-500.0,0.00019706,2]
[314676800,1708525849167,-2413.58,0.00019706,2]
[314676801,1708525849176,-500.0,0.00019706,2]
[314676802,1708525849186,-500.0,0.00019706,2]
[314676803,1708525849195,-1795.74,0.00019706,2]
[314676804,1708525849204,-500.0,0.00019706,2]
[314676805,1708525849213,-500.0,0.00019706,2]
[314676806,1708525849222,-3528.14,0.00019706,2]
[314676807,1708525849231,-1729.14,0.00019706,2]
[314676808,1708525849241,-500.0,0.00019706,2]
[314676809,1708525849250,-500.0,0.00019706,2]
[314676810,1708525849259,-500.0,0.00019706,2]
[314676811,1708525849269,-500.0,0.00019706,2]
[314676812,1708525849278,-518.9188772,0.00019706,2]
[314676813,1708525849287,-500.0,0.00019706,2]
[314676814,1708525849297,-500.0,0.00019706,2]
[314676815,1708525849307,-500.0,0.00019706,2]
[314676816,1708525849321,-500.0,0.00019707,2]
[314676817,1708525849330,-500.62699702,0.00019707,2]
[314676818,1708525849340,-180.71575866,0.00019707,2]
[314676819,1708525849349,-500.0,0.00019707,2]